lending/lending_fUSD_20260209
["ID","MTS","AMOUNT","RATE_DAILY","PERIOD"]
[404901999,1770667838691,-151.0,0.00016036,2]
[404902000,1770667838701,-151.0,0.00016036,2]
[404902001,1770667838711,-151.0,0.00016036,2]
[404902002,1770667838722,-151.0,0.00016036,2]
[404902003,1770667838732,-151.0,0.00016036,2]
[404902004,1770667838741,-151.0,0.00016036,2]
[404902005,1770667838750,-151.0,0.00016036,2]
[404902006,1770667838763,-200.0,0.00016036,2]
[404902007,1770667838773,-151.0,0.00016036,2]
[404902008,1770667838782,-151.0,0.00016036,2]
[404902009,1770667838792,-151.0,0.00016036,2]
[404902010,1770667838801,-151.0,0.00016036,2]
[404902011,1770667838811,-228.55353256,0.00016036,2]
[404902012,1770667838820,-500.0,0.00016036,2]
[404902013,1770667838829,-151.0,0.00016036,2]
[404902015,1770667838839,-151.0,0.00016036,2]
[404902017,1770667838848,-495.52702673,0.00016036,2]
[404902019,1770667838858,-200.0,0.00016036,2]
[404902021,1770667838867,-2363.98641637,0.00016039,2]
[404902023,1770667838877,-499.99,0.00016043,2]
[404902025,1770667838886,-299.99,0.00016043,2]
[404902027,1770667838896,-9999.99,0.00016043,2]
[404902029,1770667838905,-800.16206349,0.00016044,2]
[404902031,1770667838915,-800.16206349,0.00016044,2]
[404902032,1770667838927,-800.16206349,0.00016044,2]
[404902034,1770667838936,-800.16206349,0.00016044,2]
[404902036,1770667838945,-800.16206349,0.00016044,2]
[404902038,1770667838955,-800.16206349,0.00016044,2]
[404902040,1770667838965,-800.16206349,0.00016044,2]
[404902042,1770667838977,-800.16206349,0.00016044,2]
[404902044,1770667838987,-800.16206349,0.00016044,2]
[404902046,1770667838997,-800.16206349,0.00016044,2]
[404902048,1770667839007,-800.16206349,0.00016044,2]
[404902049,1770667839017,-800.16206349,0.00016044,2]
[404902050,1770667839026,-800.16206349,0.00016044,2]
[404902051,1770667839036,-800.16206349,0.00016044,2]
[404902052,1770667839045,-800.16206349,0.00016044,2]
[404902053,1770667839055,-800.16206349,0.00016044,2]
[404902054,1770667839064,-800.16206349,0.00016044,2]
[404902055,1770667839074,-800.16206349,0.00016044,2]
[404902056,1770667839083,-800.16206349,0.00016044,2]
[404902057,1770667839092,-800.16206349,0.00016044,2]
[404902058,1770667839102,-800.16206349,0.00016044,2]
[404902059,1770667839111,-800.16206349,0.00016044,2]
[404902060,1770667839120,-800.16206349,0.00016044,2]
[404902061,1770667839130,-800.16206349,0.00016044,2]
[404902062,1770667839139,-800.16206349,0.00016044,2]
[404902063,1770667839148,-800.16206349,0.00016044,2]
[404902064,1770667839158,-800.16206349,0.00016044,2]
[404902065,1770667839167,-800.16206349,0.00016044,2]
[404902066,1770667839177,-800.16206349,0.00016044,2]
[404902067,1770667839187,-800.16206349,0.00016044,2]
[404902068,1770667839196,-800.16206349,0.00016044,2]
[404902069,1770667839205,-800.16206349,0.00016044,2]
[404902070,1770667839215,-800.16206349,0.00016044,2]
[404902071,1770667839224,-800.16206349,0.00016044,2]
[404902072,1770667839235,-800.16206349,0.00016044,2]
[404902073,1770667839244,-800.16206349,0.00016044,2]
[404902074,1770667839255,-800.16206349,0.00016044,2]
[404902075,1770667839265,-800.16206349,0.00016044,2]
[404902076,1770667839274,-800.16206349,0.00016044,2]
[404902077,1770667839283,-800.16206349,0.00016044,2]
[404902078,1770667839292,-800.16206349,0.00016044,2]
[404902079,1770667839302,-800.16206349,0.00016044,2]
[404902080,1770667839311,-800.16206349,0.00016044,2]
[404902081,1770667839320,-800.16206349,0.00016044,2]
[404902082,1770667839330,-800.16206349,0.00016044,2]
[404902083,1770667839340,-800.16206349,0.00016044,2]
[404902084,1770667839349,-800.16206349,0.00016044,2]
[404902085,1770667839358,-800.16206349,0.00016044,2]
[404902086,1770667839367,-800.16206349,0.00016044,2]
[404902087,1770667839377,-800.16206349,0.00016044,2]
[404902088,1770667839387,-800.16206349,0.00016044,2]
[404902089,1770667839396,-800.16206349,0.00016044,2]
[404902090,1770667839405,-800.16206349,0.00016044,2]
[404902091,1770667839415,-262.1318607,0.00016044,2]
[404902092,1770667839424,-781.8726449,0.00016044,2]
[404902093,1770667839434,-781.8726449,0.00016044,2]
[404902094,1770667839443,-781.8726449,0.00016044,2]
[404902095,1770667839452,-781.8726449,0.00016044,2]
[404902096,1770667839462,-781.8726449,0.00016044,2]
[404902097,1770667839470,-781.8726449,0.00016044,2]
[404902098,1770667839480,-781.8726449,0.00016044,2]
[404902099,1770667839489,-781.8726449,0.00016044,2]
[404902100,1770667839498,-781.8726449,0.00016044,2]
[404902101,1770667839507,-781.8726449,0.00016044,2]
[404902102,1770667839517,-781.8726449,0.00016044,2]
[404902103,1770667839526,-781.8726449,0.00016044,2]
[404902104,1770667839536,-781.8726449,0.00016044,2]
[404902105,1770667839545,-781.8726449,0.00016044,2]
[404902106,1770667839554,-781.8726449,0.00016044,2]
[404902107,1770667839563,-781.8726449,0.00016044,2]
[404902108,1770667839572,-781.8726449,0.00016044,2]
[404902109,1770667839581,-781.8726449,0.00016044,2]
[404902110,1770667839590,-781.8726449,0.00016044,2]
[404902111,1770667839599,-781.8726449,0.00016044,2]
[404902112,1770667839609,-781.8726449,0.00016044,2]
[404902113,1770667839618,-781.8726449,0.00016044,2]
[404902114,1770667839627,-781.8726449,0.00016044,2]
[404902115,1770667839636,-781.8726449,0.00016044,2]
[404902116,1770667839645,-781.8726449,0.00016044,2]
[404902117,1770667839654,-500.0,0.00016044,2]
[404902118,1770667839663,-500.0,0.00016044,2]
[404902119,1770667839672,-486.6337398,0.00016044,2]
[404902120,1770667839681,-794.90385563,0.00016044,2]
[404902121,1770667839689,-794.90385563,0.00016044,2]
[404902122,1770667839699,-794.90385563,0.00016044,2]
[404902123,1770667839708,-794.90385563,0.00016044,2]
[404902124,1770667839717,-794.90385563,0.00016044,2]
[404902125,1770667839726,-794.90385563,0.00016044,2]
[404902126,1770667839735,-794.90385563,0.00016044,2]
[404902127,1770667839744,-794.90385563,0.00016044,2]
[404902128,1770667839753,-794.90385563,0.00016044,2]
[404902129,1770667839763,-794.90385563,0.00016044,2]
[404902130,1770667839773,-174.63735524,0.00016044,2]
[404902131,1770667839782,-1115.57176627,0.00016045,5]
[404902132,1770667839791,-1115.57176628,0.00016045,5]
[404902133,1770667839800,-178.74851016,0.00016045,5]
[404902134,1770667839809,-1028.85504012,0.00016045,5]
[404902135,1770667839818,-1028.85504012,0.00016045,5]
[404902136,1770667839831,-1028.85504011,0.00016045,5]
[404902137,1770667839840,-9999.99,0.00016045,2]
[404902138,1770667839849,-3187.53,0.00016045,2]
[404902139,1770667839858,-26706.82,0.00016045,2]
[404902140,1770667839867,-999.99,0.00016045,2]
[404902141,1770667839876,-59327.49,0.00016045,2]
[404902142,1770667839885,-23588.34,0.00016045,2]
[404902143,1770667839895,-500.0,0.00016045,2]
[404902144,1770667839904,-500.0,0.00016045,2]
[404902145,1770667839913,-500.0,0.00016045,2]
[404902146,1770667839923,-500.0,0.00016045,2]
[404902147,1770667839933,-500.0,0.00016045,2]
[404902148,1770667839943,-500.0,0.00016045,2]
[404902149,1770667839953,-500.0,0.00016045,2]
[404902150,1770667839963,-500.0,0.00016045,2]
[404902151,1770667839972,-500.0,0.00016045,2]
[404902152,1770667839981,-500.0,0.00016045,2]
[404902153,1770667839990,-500.0,0.00016045,2]
[404902154,1770667839999,-500.0,0.00016045,2]
[404902155,1770667840009,-500.0,0.00016045,2]
[404902156,1770667840019,-500.0,0.00016045,2]
[404902157,1770667840028,-500.0,0.00016045,2]
[404902158,1770667840037,-500.0,0.00016045,2]
[404902160,1770667840236,-500.0,0.00016045,2]
[404902161,1770667840252,-500.0,0.00016045,2]
[404902162,1770667840263,-187.5563731,0.00016045,2]
[404902163,1770667840273,-500.0,0.00016045,2]
[404902164,1770667840282,-500.0,0.00016045,2]
[404902165,1770667840291,-500.0,0.00016045,2]
[404902166,1770667840300,-500.0,0.00016045,2]
[404902167,1770667840310,-237.36469144,0.00016045,2]
[404902168,1770667840319,-500.0,0.00016045,2]
[404902169,1770667840329,-500.0,0.00016045,2]
[404902170,1770667840338,-500.0,0.00016045,2]
[404902171,1770667840347,-500.0,0.00016045,2]
[404902172,1770667840356,-500.0,0.00016045,2]
[404902173,1770667840366,-490.83125822,0.00016045,2]
[404902174,1770667840375,-500.0,0.00016045,2]
[404902175,1770667840385,-500.0,0.00016045,2]
[404902176,1770667840395,-500.0,0.00016045,2]
[404902177,1770667840404,-500.0,0.00016045,2]
[404902178,1770667840414,-500.0,0.00016045,2]
[404902179,1770667840424,-500.0,0.00016045,2]
[404902180,1770667840434,-500.0,0.00016045,2]
[404902181,1770667840444,-500.0,0.00016045,2]
[404902182,1770667840455,-412.37612486,0.00016045,2]
[404902183,1770667840466,-500.0,0.00016045,2]
[404902184,1770667840476,-503.80787471,0.00016045,2]
[404902185,1770667840486,-500.0,0.00016045,2]
[404902186,1770667840497,-500.0,0.00016045,2]
[404902187,1770667840508,-500.0,0.00016045,2]
[404902188,1770667840520,-500.0,0.00016045,2]
[404902189,1770667840530,-170.52,0.00016101,2]
[404902190,1770667840540,-9999.99,0.00016116,2]
[404902191,1770667840549,-319.19,0.00016129,2]
[404902192,1770667840558,-3924.93400072,0.00016154,2]
[404902193,1770667840568,-166.66,0.0001617,2]
[404902194,1770667840578,-1000.0,0.00016229,2]
[404902195,1770667840587,-33312.6077,0.00016229,2]
[404902196,1770667840597,-172.31661001,0.00016245,2]
[404902197,1770667840607,-2363.98641633,0.00016246,2]
[404902198,1770667840617,-1918.36,0.00016249,2]
[404902200,1770667840626,-26391.71,0.00016295,2]
[404902201,1770667840635,-500.0,0.00016328,2]
[404902202,1770667840644,-319.19,0.00016335,2]
[404902203,1770667840653,-500.0,0.00016354,2]
[404902204,1770667840662,-3240.0,0.00016355,2]
[404902205,1770667840672,-3924.93400072,0.00016372,2]
[404902206,1770667840681,-2848.04500868,0.000164,2]
[404902207,1770667840691,-160.08,0.00016422,2]
[404902208,1770667840700,-2363.98641633,0.00016453,2]
[404902209,1770667840709,-225.25,0.000165,2]
[404902210,1770667840718,-200.0,0.00016584,2]
[404902211,1770667840727,-500.0,0.00016584,2]
[404902212,1770667840738,-200.0,0.00016584,2]
[404902213,1770667840747,-3924.93400072,0.00016591,2]
[404902214,1770667840759,-369.98,0.0001661,2]
[404902215,1770667840768,-2363.98641633,0.00016659,2]
[404902216,1770667840777,-500.0,0.00016668,2]
[404902217,1770667840787,-250.0,0.00016669,2]
[404902218,1770667840795,-259.0,0.00016692,2]
[404902219,1770667840805,-600.0,0.00016699,2]
[404902220,1770667840814,-781.27561269,0.00016699,2]
[404902221,1770667840822,-420.0,0.00016724,2]
[404902222,1770667840831,-170.52,0.00016765,2]
[404902223,1770667840841,-3924.93400072,0.00016809,2]
[404902224,1770667840850,-1680.0,0.00016809,2]
[404902225,1770667840859,-195.0,0.00016814,2]
[404902226,1770667840868,-2363.98641633,0.00016866,2]
[404902227,1770667840877,-500.0,0.00017,2]
[404902228,1770667840887,-1918.36,0.00017023,2]
[404902229,1770667840896,-3924.93400072,0.00017027,2]
[404902230,1770667840906,-2363.98641633,0.00017073,2]
[404902231,1770667840915,-200.0,0.00017132,2]
[404902232,1770667840926,-500.0,0.00017132,2]
[404902233,1770667840935,-200.0,0.00017132,2]
[404902234,1770667840945,-402.0,0.0001717,2]
[404902235,1770667840955,-500.0,0.00017201,2]
[404902236,1770667840964,-3924.93400072,0.00017245,2]
[404902237,1770667840974,-2363.98641633,0.0001728,2]
[404902238,1770667840983,-2225.27597943,0.00017313,2]
[404902239,1770667840992,-319.19,0.00017401,2]
[404902240,1770667841002,-500.0,0.00017411,2]
[404902241,1770667841014,-541.04,0.00017424,2]
[404902242,1770667841023,-170.52,0.00017429,2]
[404902243,1770667841032,-5007.0,0.00017451,2]
[404902244,1770667841041,-3924.93400072,0.00017464,2]
[404902245,1770667841051,-402.0,0.0001747,2]
[404902246,1770667841060,-2363.98641633,0.00017486,2]
[404902247,1770667841069,-402.0,0.0001752,2]
[404902248,1770667841078,-231.0,0.00017578,2]
[404902249,1770667841087,-314.0,0.00017587,2]
[404902250,1770667841096,-2225.27597943,0.00017607,2]
[404902251,1770667841105,-402.0,0.00017615,2]
[404902252,1770667841114,-417.0,0.00017664,2]
[404902253,1770667841123,-1000.0,0.00017666,2]
[404902254,1770667841133,-1000.0,0.00017666,2]
[404902255,1770667841143,-1000.0,0.00017666,2]
[404902256,1770667841152,-1000.0,0.00017666,2]
[404902257,1770667841161,-1000.0,0.00017666,2]
[404902258,1770667841170,-1000.0,0.00017666,2]
[404902259,1770667841179,-1000.0,0.00017666,2]
[404902260,1770667841188,-1000.0,0.00017666,2]
[404902261,1770667841198,-1000.0,0.00017666,2]
[404902262,1770667841207,-1000.0,0.00017666,2]
[404902263,1770667841217,-1000.0,0.00017666,2]
[404902264,1770667841226,-506.851,0.00017666,2]
[404902265,1770667841235,-200.0,0.0001768,2]
[404902266,1770667841244,-500.0,0.0001768,2]
[404902267,1770667841255,-200.0,0.0001768,2]
[404902268,1770667841264,-3924.93400072,0.00017682,2]
[404902269,1770667841274,-160.08,0.00017685,2]
[404902270,1770667841283,-2363.98641633,0.00017693,2]
[404902271,1770667841293,-1918.36,0.00017797,2]
[404902272,1770667841303,-500.0,0.00017808,2]
[404902273,1770667841312,-500.0,0.00017808,2]
[404902274,1770667841322,-500.0,0.00017808,2]
[404902275,1770667841331,-500.0,0.00017808,2]
[404902276,1770667841341,-500.0,0.00017808,2]
[404902277,1770667841351,-500.0,0.00017808,2]
[404902278,1770667841360,-500.0,0.00017808,2]
[404902279,1770667841371,-500.0,0.00017808,2]
[404902280,1770667841388,-500.0,0.00017808,2]
[404902281,1770667841397,-500.0,0.00017808,2]
[404902282,1770667841407,-500.0,0.00017808,2]
[404902283,1770667841416,-500.0,0.00017808,2]
[404902284,1770667841426,-500.0,0.00017808,2]
[404902285,1770667841436,-500.0,0.00017808,2]
[404902286,1770667841446,-500.0,0.00017808,2]
[404902287,1770667841455,-500.0,0.00017808,2]
[404902288,1770667841465,-500.0,0.00017808,2]
[404902289,1770667841474,-500.0,0.00017808,2]
[404902290,1770667841484,-500.0,0.00017808,2]
[404902291,1770667841493,-500.0,0.00017808,2]
[404902292,1770667841503,-500.0,0.00017808,2]
[404902293,1770667841514,-500.0,0.00017808,2]
[404902294,1770667841523,-500.0,0.00017808,2]
[404902295,1770667841533,-500.0,0.00017808,2]
[404902296,1770667841542,-500.0,0.00017808,2]
[404902297,1770667841552,-500.0,0.00017808,2]
[404902298,1770667841562,-500.0,0.00017808,2]
[404902299,1770667841571,-500.0,0.00017808,2]
[404902300,1770667841580,-500.0,0.00017808,2]
[404902301,1770667841594,-500.0,0.00017808,2]
[404902302,1770667841613,-500.0,0.00017808,2]
[404902303,1770667841622,-500.0,0.00017808,2]
[404902304,1770667841631,-500.0,0.00017808,2]
[404902305,1770667841641,-500.0,0.00017808,2]
[404902306,1770667841651,-500.0,0.00017808,2]
[404902307,1770667841660,-573.0875081,0.00017808,2]
[404902308,1770667841670,-500.0,0.00017808,2]
[404902309,1770667841679,-500.0,0.00017808,2]
[404902310,1770667841688,-500.0,0.00017808,2]
[404902311,1770667841698,-500.0,0.00017808,2]
[404902312,1770667841707,-500.0,0.00017808,2]
[404902313,1770667841716,-500.0,0.00017808,2]
[404902314,1770667841726,-500.0,0.00017808,2]
[404902315,1770667841735,-500.0,0.00017808,2]
[404902316,1770667841745,-500.0,0.00017808,2]
[404902317,1770667841754,-500.0,0.00017808,2]
[404902318,1770667841765,-500.0,0.00017808,2]
[404902319,1770667841775,-500.0,0.00017808,2]
[404902320,1770667841784,-500.0,0.00017808,2]
[404902321,1770667841793,-500.0,0.00017808,2]
[404902322,1770667841802,-500.0,0.00017808,2]
[404902323,1770667841811,-500.0,0.00017808,2]
[404902324,1770667841820,-500.0,0.00017808,2]
[404902325,1770667841829,-500.0,0.00017808,2]
[404902326,1770667841838,-500.0,0.00017808,2]
[404902327,1770667841847,-500.0,0.00017808,2]
[404902328,1770667841857,-500.0,0.00017808,2]
[404902329,1770667841867,-500.0,0.00017808,2]
[404902330,1770667841876,-500.0,0.00017808,2]
[404902331,1770667841885,-500.0,0.00017808,2]
[404902332,1770667841894,-500.0,0.00017808,2]
[404902333,1770667841904,-500.0,0.00017808,2]
[404902334,1770667841913,-500.0,0.00017808,2]
[404902335,1770667841924,-250.0,0.00017808,2]
[404902336,1770667841935,-500.0,0.00017808,2]
[404902337,1770667841945,-500.0,0.00017808,2]
[404902338,1770667841955,-500.0,0.00017808,2]
[404902339,1770667841964,-500.0,0.00017808,2]
[404902340,1770667841974,-5007.0,0.0001787,2]
[404902341,1770667841983,-402.0,0.00017899,2]
[404902342,1770667841993,-196.24718725,0.000179,2]
[404902343,1770667842003,-2225.27597943,0.000179,2]
[404902344,1770667842013,-187.77542176,0.000179,2]
[404902345,1770667842023,-2363.98641633,0.000179,2]
[404902346,1770667842033,-3924.93400072,0.000179,2]
[404902347,1770667842042,-950.10018824,0.000179,2]
[404902348,1770667842051,-9381.55022194,0.000179,2]
[404902349,1770667842060,-500.0,0.000179,2]
[404902350,1770667842070,-219.34014838,0.000179,2]
[404902351,1770667842079,-402.0,0.00017962,2]
[404902352,1770667842089,-6859.2691288,0.00017968,2]
[404902353,1770667842098,-2700.6489792,0.00017968,2]
[404902354,1770667842109,-402.0,0.00017968,2]
[404902355,1770667842118,-60751.1244114,0.00017969,2]
[404902356,1770667842127,-151.0,0.00017997,2]
[404902357,1770667842136,-300.0,0.00017999,2]
[404902358,1770667842145,-300.0,0.00017999,2]
[404902359,1770667842154,-577.8720561,0.00017999,2]
[404902360,1770667842164,-300.0,0.00017999,2]
[404902361,1770667842174,-216.74188982,0.00017999,2]
[404902362,1770667842183,-500.0,0.00017999,2]
[404902363,1770667842192,-260.32212629,0.00017999,2]
[404902364,1770667842202,-500.0,0.00017999,2]
[404902365,1770667842212,-646.46315817,0.00017999,2]
[404902366,1770667842222,-500.0,0.00017999,2]
[404902367,1770667842231,-500.0,0.00017999,2]
[404902368,1770667842240,-500.0,0.00017999,2]
[404902369,1770667842250,-5232439.01853675,0.00018,2]
[404902370,1770667842291,-793.66649967,0.00018,2]
[404902371,1770667842302,-630.05797268,0.00018,2]
[404902372,1770667842314,-8460.0,0.00018,2]
[404902373,1770667842326,-73037.34113683,0.00018,2]
[404902374,1770667842412,-1421322.95785393,0.00018,2]
[404902379,1770667844923,-1323.95192,0.00018,2]
[404902380,1770667845664,-6335.9606704,0.00018,2]
[404902392,1770667846204,-6128.12246198,0.00018,2]
[404902407,1770667846542,-15424.95451372,0.00018,2]
[404902410,1770667846554,-12862.94715333,0.00018,2]
[404902461,1770667873989,1000.0,0.00015936,2]
[404902466,1770667892572,2500.0,0.00015944,2]
[404902468,1770667932203,-11126.37989721,0.000179,2]
[404902469,1770667932230,-150.0,0.00017973,2]
[404902470,1770667932255,-2892.927,0.00017973,2]
[404902471,1770667932280,-151.0,0.00017989,2]
[404902472,1770667932303,-300.0,0.00017999,2]
[404902473,1770667932327,-120619.69310279,0.00018,2]
[404902478,1770668172268,-872.3792,0.00015936,2]
[404902479,1770668180697,250.0,0.00015,2]
[404902480,1770668188326,-1585.6693,0.00015944,2]
[404902481,1770668391406,151.0,0.0003561,31]
[404902482,1770668412937,183.958311,0.0003561,31]
[404902483,1770668414329,183.958311,0.0003561,31]
[404902484,1770668416163,183.958311,0.0003561,31]
[404902485,1770668417609,183.958311,0.0003561,31]
[404902487,1770668501097,151.0,0.00014634,2]
[404902489,1770668557925,151.0,0.0003561,31]
[404902490,1770668571063,151.0,0.0003561,31]
[404902491,1770668582047,9849.01,0.00016736,2]
[404902492,1770668582070,924.54,0.00016736,2]
[404902493,1770668648058,151.0,0.0003561,31]
[404902494,1770668733452,2167.09463601,8.36e-06,2]
[404902495,1770668734571,500.0,0.00016686,2]
[404902496,1770668751126,151.0,0.0003561,31]
[404902497,1770668758075,957.63404777,0.00013,2]
[404902498,1770668760370,6375.28131622,8e-05,2]
[404902499,1770668760395,7549.47385385,8e-05,2]
[404902500,1770668774004,602.05,0.00016745,2]
[404902501,1770668775001,602.05,0.00025117,120]
[404902502,1770668812599,1848.48614615,0.000162,5]
[404902503,1770668812624,3151.52126807,0.000162,5]
[404902518,1770668855037,151.0,0.0003561,31]
[404902531,1770669015688,151.0,0.0003543,31]
[404902532,1770669017222,151.0,0.0003543,31]
[404902533,1770669019292,151.0,0.0003543,31]
[404902534,1770669021417,151.0,0.0003543,31]
[404902548,1770669031563,-200.59756188,0.00016983,2]
[404902549,1770669031572,-293.0,0.00016983,2]
[404902550,1770669031582,-250.0,0.00016992,2]
[404902551,1770669031591,-300.0,0.00017,2]
[404902552,1770669031600,-500.0,0.00017,2]
[404902553,1770669031609,-250.0,0.00017103,2]
[404902554,1770669031619,-200.0,0.00017148,2]
[404902555,1770669031633,-1513.5262244,0.00017333,2]
[404902556,1770669031653,-1200.0,0.00017431,2]
[404902557,1770669031662,-550.0,0.00017431,2]
[404902558,1770669031672,-300.0,0.00017431,2]
[404902560,1770669031682,-202315.96838406,0.00017432,2]
[404902562,1770669031693,-8086.50553282,0.00017432,2]
[404902565,1770669031708,-64753.19581,0.00017432,2]
[404902567,1770669031719,-10704.85266722,0.00017432,2]
[404902570,1770669031738,-14144.28495626,0.00017432,2]
[404902576,1770669037455,-3199995.19264964,0.00017432,2]
[404902577,1770669037465,-1513.52622436,0.00017446,2]
[404902578,1770669037474,-662.62065861,0.00017459,2]
[404902579,1770669037483,-662.62065861,0.00017497,2]
[404902580,1770669037493,-1117.0,0.00017505,2]
[404902581,1770669037502,-151.0,0.0001753,2]
[404902582,1770669037512,-151.0,0.0001753,2]
[404902583,1770669037521,-1365.4,0.00017532,2]
[404902584,1770669037531,-500.0,0.00017532,2]
[404902585,1770669037540,-500.0,0.00017532,2]
[404902586,1770669037549,-500.0,0.00017532,2]
[404902587,1770669037558,-500.0,0.00017532,2]
[404902588,1770669037567,-500.0,0.00017532,2]
[404902589,1770669037580,-500.0,0.00017532,2]
[404902590,1770669037592,-500.0,0.00017532,2]
[404902591,1770669037816,-500.0,0.00017532,2]
[404902592,1770669037827,-500.0,0.00017532,2]
[404902593,1770669037837,-574.70389189,0.00017532,2]
[404902594,1770669037846,-487.0,0.00017533,2]
[404902595,1770669037856,-487.0,0.00017533,2]
[404902596,1770669037865,-487.0,0.00017533,2]
[404902597,1770669037877,-487.0,0.00017533,2]
[404902598,1770669037886,-524.44,0.00017533,2]
[404902599,1770669037895,-662.62065861,0.00017535,2]
[404902600,1770669037905,-1117.0,0.00017559,2]
[404902601,1770669037914,-1513.52622436,0.0001756,2]
[404902602,1770669037923,-500.0,0.00017562,2]
[404902603,1770669037932,-1117.0,0.0001757,2]
[404902604,1770669037942,-16472.4,0.0001757,2]
[404902605,1770669037951,-9999.99,0.0001757,2]
[404902606,1770669037961,-1117.0,0.00017572,2]
[404902607,1770669037970,-999.99,0.00017572,2]
[404902608,1770669037979,-150.99,0.00017572,2]
[404902609,1770669037991,-9999.99,0.00017572,2]
[404902610,1770669038002,-499.99,0.00017572,2]
[404902611,1770669038011,-9999.99,0.00017572,2]
[404902612,1770669038020,-9999.99,0.00017572,2]
[404902613,1770669038030,-9999.99,0.00017572,2]
[404902614,1770669038040,-150.99,0.00017572,2]
[404902615,1770669038050,-662.62065861,0.00017573,2]
[404902616,1770669038059,-1117.0,0.00017603,2]
[404902617,1770669038069,-662.62065861,0.00017611,2]
[404902618,1770669038079,-1117.0,0.00017627,2]
[404902619,1770669038088,-1117.0,0.00017633,2]
[404902620,1770669038098,-662.62065861,0.00017648,2]
[404902621,1770669038108,-1513.52622436,0.00017673,2]
[404902622,1770669038122,-662.62065861,0.00017686,2]
[404902623,1770669038131,-200.0,0.00017697,2]
[404902624,1770669038140,-200.0,0.00017697,2]
[404902625,1770669038150,-783.40878762,0.000177,2]
[404902626,1770669038159,-403.0,0.000177,5]
[404902627,1770669038169,-662.62065861,0.00017724,2]
[404902628,1770669038179,-1117.0,0.00017747,2]
[404902629,1770669038188,-662.62065861,0.00017762,2]
[404902630,1770669038198,-207.2,0.00017779,2]
[404902631,1770669038208,-1513.52622436,0.00017787,2]
[404902632,1770669038218,-1117.0,0.0001779,2]
[404902633,1770669038227,-1316.12626123,0.00017799,5]
[404902634,1770669038237,-1316.12626123,0.00017799,5]
[404902635,1770669038246,-222.5977,0.000178,2]
[404902636,1770669038256,-662.62065861,0.000178,2]
[404902637,1770669038266,-1365.4,0.00017805,2]
[404902638,1770669038279,-1117.0,0.00017824,2]
[404902639,1770669038288,-1117.0,0.00017829,2]
[404902640,1770669038298,-295.98,0.00017832,2]
[404902641,1770669038307,-2314.341,0.00017852,2]
[404902642,1770669038318,-774.42577446,0.0001786,2]
[404902643,1770669038328,-2381.11,0.00017881,2]
[404902644,1770669038337,-151.0,0.00017896,2]
[404902645,1770669038347,-500.0,0.00017898,2]
[404902646,1770669038357,-642.18068599,0.00017898,2]
[404902647,1770669038366,-500.0,0.00017898,2]
[404902648,1770669038377,-500.0,0.00017898,2]
[404902649,1770669038396,-500.0,0.00017898,2]
[404902650,1770669038407,-509.28197687,0.00017898,2]
[404902651,1770669038416,-1500000.0,0.00017899,2]
[404902652,1770669038426,-10000.0,0.000179,2]
[404902653,1770669038436,-500.0,0.000179,2]
[404902654,1770669038446,-1513.52622436,0.000179,2]
[404902655,1770669038456,-1117.0,0.00017906,2]
[404902656,1770669038465,-4986.96,0.00017926,2]
[404902657,1770669038475,-150.0,0.00017944,2]
[404902658,1770669038485,-1117.0,0.00017989,2]
[404902659,1770669038495,-151.0,0.00017997,2]
[404902660,1770669038505,-50707.7951551,0.00017998,2]